bitfinex-derivatives/quotes_SOLF0:USTF0_20260306
["timestamp","ask_amount","ask_price","bid_price","bid_amount"]
[1772820256584,3.66594538,84.51,84.461,3.13679936]
[1772820257985,3.66594538,84.51,84.468,10.654]
[1772820258688,3.68847135,84.511,84.477,10.653]
[1772820260086,3.66594538,84.52,84.477,10.653]
[1772820260488,10.647,84.523,84.478,3.16256144]
[1772820260682,3.68847135,84.538,84.487,3.16256144]
[1772820260883,9.70744009,84.537,84.5,3.66594538]
[1772820261090,3.68847135,84.538,84.5,3.66594538]
[1772820261778,3.68847135,84.538,84.501,10.65]
[1772820262181,3.66594538,84.55,84.501,13.81659709]
[1772820262380,9.70308621,84.549,84.502,3.16659709]
[1772820262582,9.70308621,84.548,84.502,3.16659709]
[1772820262783,3.68847135,84.553,84.51,3.66594538]
[1772820262984,9.70242634,84.552,84.51,3.66594538]
[1772820263181,3.68847135,84.553,84.51,3.66594538]
[1772820263392,3.66594538,84.55,84.505,10.649]
[1772820264181,3.68847135,84.553,84.505,10.649]
[1772820264382,3.68847135,84.553,84.51,3.66594538]
[1772820265091,3.68847135,84.553,84.511,10.648]
[1772820265289,3.68847135,84.553,84.51,3.66594538]
[1772820265590,3.68847135,84.553,84.494,3.11756277]
[1772820265591,3.66594538,84.53,84.494,3.11756277]
[1772820265791,3.66594538,84.53,84.48,17.43550814]
[1772820265993,7.35441673,84.53,84.48,17.43550814]
[1772820266387,3.68847135,84.529,84.481,3.14122737]
[1772820266588,3.68847135,84.519,84.47,3.66594538]
[1772820266793,3.68847135,84.519,84.467,3.14122737]
[1772820266794,3.66594538,84.51,84.467,3.14122737]
[1772820266993,3.66594538,84.5,84.452,3.14122737]
[1772820267793,3.66594538,84.5,84.454,10.656]
[1772820269296,3.66594538,84.49,84.452,3.14122737]
[1772820269491,3.68847135,84.489,84.438,3.1561011]
[1772820270201,3.66594538,84.48,84.438,3.1561011]
[1772820270594,3.68847135,84.479,84.429,10.659]
[1772820270796,3.68847135,84.479,84.382,210.47]
[1772820270797,3.68847135,84.469,84.415,3.26710482]
[1772820271007,3.68847135,84.459,84.413,10.661]
[1772820271411,3.68847135,84.459,84.411,3.26710481]
[1772820271709,3.66594538,84.47,84.411,3.26710481]
[1772820271904,7.3500142,84.46,84.411,3.26710481]
[1772820272301,3.68406882,84.459,84.411,3.26710481]
[1772820273806,3.66594538,84.45,84.4,3.66594538]
[1772820274006,3.68406882,84.449,84.397,3.27590583]
[1772820274707,3.68406882,84.449,84.319,28.57817463]
[1772820274708,3.66594538,84.43,84.384,10.664]
[1772820275104,3.68406882,84.429,84.382,3.32481885]
[1772820276214,3.68406882,84.409,84.365,10.667]
[1772820276805,3.68406882,84.409,84.356,10.668]
[1772820277006,3.68406882,84.409,84.353,3.11104741]
[1772820278116,3.68406882,84.424,84.353,3.11104741]
[1772820279812,3.68406882,84.424,84.373,3.0976318]
[1772820280218,3.68406882,84.448,84.373,3.0976318]
[1772820280421,3.68406882,84.448,84.387,3.10572965]
[1772820281116,3.68406882,84.448,84.389,3.10572965]
[1772820281618,3.68406882,84.466,84.408,3.10572965]
[1772820282216,3.68406882,84.466,84.41,3.10572964]
[1772820282415,3.68406882,84.499,84.411,3.1081425]
[1772820283320,3.68406882,84.496,84.432,10.658]
[1772820283513,3.68406882,84.496,84.433,3.1081425]
[1772820284922,3.68406882,84.494,84.435,3.11586234]
[1772820285317,3.68406882,84.494,84.437,3.11586233]
[1772820285519,3.68406882,84.494,84.422,3.11586233]
[1772820285818,3.68406882,84.494,84.391,3.11586233]
[1772820286620,3.68406882,84.467,84.408,10.661]
[1772820288216,3.68406882,84.465,84.406,3.1164987]
[1772820289919,3.68406882,84.461,84.406,3.1164987]
[1772820290729,3.68406882,84.461,84.406,13.7784987]
[1772820291331,3.68406882,84.461,84.38,9.17813153]
[1772820291332,3.68406882,84.459,84.39,3.02102675]
[1772820293034,3.68406882,84.457,84.404,10.662]
[1772820293336,3.68406882,84.457,84.39,3.02102675]
[1772820293337,3.68406882,84.457,84.405,3.0175233]
[1772820293828,3.68406882,84.457,84.407,10.661]
[1772820296434,3.68406882,84.457,84.414,10.661]
[1772820297037,3.68406882,84.457,84.407,2.92848257]
[1772820298034,3.68406882,84.457,84.412,10.661]
[1772820299130,3.68406882,84.457,84.391,2.92745805]
[1772820300027,3.68406882,84.457,84.39,9.17813153]
[1772820300028,3.68406882,84.457,84.405,2.92745805]
[1772820300229,3.65292206,84.479,84.405,2.92745805]
[1772820300424,3.65292206,84.479,84.43,3.66907567]
[1772820300835,3.65292206,84.477,84.44,3.66907567]
[1772820301626,3.65292206,84.477,84.43,3.66907567]
[1772820302333,3.64250006,84.469,84.43,3.66907567]
[1772820302536,21.294,84.524,84.421,2.92720666]
[1772820302537,3.64250006,84.484,84.421,2.92720666]
[1772820303835,3.64250006,84.469,84.421,2.92720666]
[1772820305542,3.64250006,84.465,84.407,10.661]
[1772820306044,3.64250006,84.465,84.405,2.92201842]
[1772820306237,3.64250006,84.465,84.406,2.92201842]
[1772820306832,3.64250006,84.465,84.414,2.93529775]
[1772820307744,3.64250006,84.465,84.418,13.59529775]
[1772820308039,3.64250006,84.465,84.419,2.93529775]
[1772820308932,3.64250006,84.465,84.425,10.659]
[1772820309639,3.64250006,84.479,84.431,13.60135986]
[1772820309940,3.64250006,84.479,84.432,2.94335986]
[1772820310542,3.64250006,84.475,84.401,2.93683599]
[1772820311441,9.17174298,84.49,84.409,10.661]
[1772820311442,3.64250006,84.459,84.409,10.661]
[1772820312240,3.64250006,84.459,84.39,9.17174298]
[1772820312241,3.64250006,84.459,84.417,10.66]
[1772820312639,3.64250006,84.459,84.414,2.93683598]
[1772820312640,3.64250006,84.474,84.414,2.93683598]
[1772820312841,3.64250006,84.472,84.422,10.66]
[1772820313032,3.64250006,84.487,84.422,2.92660417]
[1772820313539,10.652,84.48,84.436,10.658]
[1772820314341,3.64250006,84.477,84.428,10.659]
[1772820314533,3.64250006,84.477,84.422,2.92660417]
[1772820314934,3.64250006,84.477,84.431,2.86694111]
[1772820315133,3.64250006,84.491,84.431,2.86694111]
[1772820315338,9.66683013,84.49,84.431,2.86694111]
[1772820315538,9.66683013,84.489,84.431,2.86694111]
[1772820315846,3.64250006,84.491,84.431,2.86694111]
[1772820316037,13.31190901,84.49,84.431,2.86694111]
[1772820316341,3.64250006,84.49,84.431,2.86694111]
[1772820316642,10.652,84.483,84.44,10.657]
[1772820316942,3.64250006,84.49,84.431,2.86694111]
[1772820317441,10.652,84.485,84.433,2.87022967]
[1772820318141,3.64250006,84.49,84.446,2.87022967]
[1772820318441,10.651,84.493,84.446,2.87022967]
[1772820318638,10.65,84.5,84.454,10.656]
[1772820318847,3.64250006,84.505,84.455,2.85992077]
[1772820319539,10.649,84.504,84.458,2.85992077]
[1772820320247,3.64250006,84.498,84.442,2.85992077]
[1772820320446,3.64250006,84.496,84.442,2.85992077]
[1772820320949,3.64250006,84.479,84.427,2.8633525]
[1772820321639,3.64250006,84.479,84.411,2.86335249]
[1772820321845,3.64250006,84.477,84.411,2.86335249]
[1772820322139,3.64250006,84.475,84.411,2.86335249]
[1772820322344,3.64250006,84.473,84.411,2.86335249]
[1772820322645,3.64250006,84.488,84.411,2.86335249]
[1772820322944,3.64250006,84.486,84.411,2.86335249]
[1772820323140,3.64250006,84.48,84.425,10.659]
[1772820323342,3.64250006,84.478,84.425,10.659]
[1772820323739,10.655,84.463,84.417,10.66]
[1772820324139,10.655,84.463,84.411,2.86335249]
[1772820325845,10.655,84.463,84.414,10.661]
[1772820326547,10.655,84.463,84.42,10.66]
[1772820327846,3.64250006,84.458,84.412,10.661]
[1772820328347,14.29850006,84.451,84.403,10.662]
[1772820328548,3.67142696,84.45,84.403,10.662]
[1772820329048,3.67142696,84.45,84.409,10.661]
[1772820329248,3.64250006,84.451,84.41,3.67142696]
[1772820329445,3.64250006,84.451,84.401,2.85749792]
[1772820329646,3.67142696,84.48,84.421,2.85749792]
[1772820329852,3.64250006,84.478,84.43,3.67142696]
[1772820330050,13.34605205,84.477,84.43,3.67142696]
[1772820330246,9.70355199,84.476,84.43,3.67142696]
[1772820330449,3.64250006,84.477,84.43,3.67142696]
[1772820330748,9.70447779,84.476,84.43,3.67142696]
[1772820330948,3.64250006,84.477,84.43,3.67142696]
[1772820331147,9.70447779,84.476,84.43,3.67142696]
[1772820331447,3.64250006,84.477,84.43,3.67142696]
[1772820331647,9.70438841,84.476,84.43,3.67142696]
[1772820331849,3.64250006,84.477,84.43,14.33042696]
[1772820332048,9.70438879,84.476,84.43,14.33042696]
[1772820332247,3.64250006,84.477,84.43,14.33042696]
[1772820332451,4.03339323,84.491,84.438,10.658]
[1772820332747,13.73757919,84.49,84.431,2.86578108]
[1772820332942,9.70418596,84.489,84.431,2.86578108]
[1772820333142,4.03339323,84.49,84.431,2.86578108]
[1772820333744,4.03339323,84.49,84.451,10.656]
[1772820334150,4.03339323,84.49,84.444,2.86578108]
[1772820334351,4.03339323,84.49,84.447,10.657]
[1772820335354,4.03339323,84.49,84.439,10.657]
[1772820335753,13.73413257,84.489,84.426,2.89923686]
[1772820336054,4.03339323,84.481,84.426,2.89923686]
[1772820337345,4.03339323,84.498,84.446,2.88765679]
[1772820337546,9.70180587,84.497,84.446,2.88765679]
[1772820337747,9.70180587,84.496,84.446,2.88765679]
[1772820337946,9.70180587,84.495,84.446,2.88765679]
[1772820338150,4.03339323,84.498,84.446,2.88765679]
[1772820338351,9.70208645,84.497,84.446,2.88765679]
[1772820338552,4.03339323,84.498,84.456,10.655]
[1772820339548,4.03339323,84.498,84.447,2.88611251]
[1772820340150,4.03339323,84.508,84.457,2.88611251]
[1772820340354,9.69764208,84.507,84.457,2.88611251]
[1772820340548,4.03339323,84.505,84.457,2.88611251]
[1772820340854,4.03339323,84.5,84.442,2.88177951]
[1772820341553,4.03339323,84.491,84.442,2.88177951]
[1772820341750,4.03339323,84.489,84.442,2.88177951]
[1772820341955,4.03339323,84.489,84.428,2.8817795]
[1772820342555,4.03339323,84.509,84.431,2.84420132]
[1772820342855,4.03339323,84.507,84.431,2.84420132]
[1772820343058,9.69445512,84.506,84.431,2.84420132]
[1772820343250,9.69445512,84.505,84.431,2.84420132]
[1772820343450,9.69445512,84.504,84.466,10.654]
[1772820343648,4.03339323,84.507,84.466,10.654]
[1772820343854,10.648,84.514,84.466,13.49820132]
[1772820344049,9.69276904,84.513,84.466,13.49820132]
[1772820344248,10.648,84.514,84.466,13.49820132]
[1772820344962,10.647,84.522,84.469,2.83667821]
[1772820345255,4.03339323,84.523,84.469,2.83667821]
[1772820346854,10.645,84.538,84.469,2.83667821]
[1772820347260,14.67839323,84.538,84.469,2.83667821]
[1772820347458,9.67293608,84.549,84.484,2.83310965]
[1772820347661,4.03339323,84.553,84.484,2.83310965]
[1772820347861,4.03339323,84.551,84.484,2.83310965]
[1772820348056,4.03339323,84.547,84.494,10.65]
[1772820348363,4.03339323,84.547,84.484,2.83310965]
[1772820348655,11.73757774,84.566,84.484,2.83310965]
[1772820348656,4.03339323,84.544,84.484,13.48510965]
[1772820349052,4.03339323,84.544,84.484,2.83310965]
[1772820350259,4.03339323,84.544,84.501,10.65]
[1772820350460,4.03339323,84.544,84.484,2.83310965]
[1772820350872,4.03339323,84.544,84.498,2.80665905]
[1772820351071,4.03339323,84.563,84.498,2.80665905]
[1772820351365,4.03339323,84.559,84.481,2.80665905]
[1772820351568,4.03339323,84.545,84.481,2.80665905]
[1772820352364,4.03339323,84.558,84.481,2.80665905]
[1772820353466,4.03339323,84.556,84.504,10.649]
[1772820353862,4.03339323,84.556,84.504,13.42949882]
[1772820354063,4.03339323,84.556,84.509,10.649]
[1772820354273,4.03339323,84.556,84.509,13.42949882]
[1772820354972,4.03339323,84.574,84.52,2.77906859]
[1772820355777,4.03339323,84.574,84.525,2.78065025]
[1772820356472,4.03339323,84.574,84.527,2.7908076]
[1772820357474,4.00860511,84.604,84.527,2.7908076]
[1772820358767,4.00860511,84.593,84.535,13.38660479]
[1772820358973,4.00860511,84.593,84.536,2.74160479]
[1772820359870,4.00860511,84.593,84.55,10.644]
[1772820360066,4.00860511,84.593,84.536,2.74160479]
[1772820360367,4.00860511,84.613,84.553,2.75774453]
[1772820360567,4.00860511,84.629,84.56,9.16132436]
[1772820360774,4.00860511,84.629,84.561,2.75774453]
[1772820360970,4.00860511,84.629,84.582,10.639]
[1772820361179,4.00860511,84.659,84.581,2.75774453]
[1772820361677,4.00860511,84.687,84.601,2.75774452]
[1772820361876,11.04169853,84.719,84.601,2.75774452]
[1772820361877,3.65138798,84.679,84.601,2.75774452]
[1772820362177,3.65138798,84.679,84.603,2.7574268]
[1772820362373,3.65138798,84.679,84.611,2.77929171]
[1772820362583,3.65138798,84.679,84.624,2.77929171]
[1772820362779,3.65138798,84.679,84.611,2.77929171]
[1772820363375,3.65138798,84.667,84.611,2.77929171]
[1772820364167,3.65138798,84.667,84.614,2.77929171]
[1772820364379,3.65138798,84.685,84.614,2.77929171]
[1772820365478,3.65138798,84.679,84.591,2.74081431]
[1772820365875,3.65138798,84.669,84.594,10.638]
[1772820366775,3.65138798,84.669,84.591,2.74081431]
[1772820367379,3.65138798,84.669,84.61,10.636]
[1772820368079,3.65138798,84.669,84.607,2.69662271]
[1772820369081,3.65138798,84.669,84.608,10.636]
[1772820369573,3.65138798,84.669,84.607,2.69662271]
[1772820369778,3.65138798,84.669,84.599,2.71885335]
[1772820370177,3.65138798,84.663,84.586,2.76550138]
[1772820370377,3.65138798,84.659,84.586,2.76550138]
[1772820370979,3.65138798,84.659,84.606,10.636]
[1772820371175,3.65138798,84.659,84.606,13.40150138]
[1772820371572,3.65138798,84.659,84.614,10.635]
[1772820371976,21.243,84.729,84.6,2.76550138]
[1772820371977,3.65138798,84.675,84.6,2.76550138]
[1772820372377,3.65138798,84.657,84.6,2.76550138]
[1772820372883,3.65138798,84.657,84.602,10.637]
[1772820374181,3.65138798,84.684,84.611,2.70644993]
[1772820374487,3.65138798,84.664,84.591,2.69137378]
[1772820375084,3.65138798,84.644,84.592,10.638]
[1772820375284,3.65138798,84.644,84.55,62.0]
[1772820375285,3.65138798,84.644,84.558,2.69137378]
[1772820375888,10.635,84.616,84.562,10.642]
[1772820376078,3.65138798,84.616,84.558,2.69137378]
[1772820376583,3.65138798,84.649,84.558,2.69137378]
[1772820377585,10.634,84.629,84.573,2.67652025]
[1772820377888,3.65138798,84.634,84.573,2.67652025]
[1772820379290,3.65138798,84.62,84.551,2.71081994]
[1772820379787,3.65138798,84.62,84.554,2.71081994]
[1772820381086,3.65138798,84.619,84.533,2.72084619]
[1772820381483,3.65138798,84.619,84.571,10.641]
[1772820381687,3.65138798,84.639,84.572,2.72084619]
[1772820382487,3.65138798,84.634,84.557,2.8702589]
[1772820383593,3.65138798,84.617,84.557,2.8702589]
[1772820384187,3.65138798,84.637,84.573,2.8702589]
[1772820384588,3.65138798,84.659,84.573,2.8702589]
[1772820385386,3.65138798,84.655,84.598,10.637]
[1772820385691,3.65138798,84.655,84.561,2.89090381]
[1772820386190,3.65138798,84.637,84.578,10.64]
[1772820386493,3.65138798,84.637,84.561,2.89090381]
[1772820386690,3.65138798,84.637,84.586,10.639]
[1772820388294,3.65138798,84.637,84.577,10.64]
[1772820389993,3.65138798,84.632,84.568,10.641]
[1772820390192,3.65138798,84.632,84.541,2.9992366]
[1772820390493,3.65138798,84.615,84.566,10.641]
[1772820390793,14.28638798,84.615,84.566,10.641]
[1772820390992,3.65138798,84.615,84.567,3.00065233]
[1772820391191,3.65138798,84.615,84.571,3.00065233]
[1772820392892,3.65138798,84.615,84.54,9.16132436]
[1772820392893,3.65138798,84.615,84.562,10.642]
[1772820393087,3.65138798,84.615,84.555,2.99742409]
[1772820393485,3.91877656,84.612,84.555,2.99742409]
[1772820394095,14.55477656,84.611,84.556,10.643]
[1772820394298,14.55477656,84.611,84.555,2.99742409]
[1772820394595,3.91877656,84.61,84.555,2.99742409]
[1772820396295,3.91877656,84.61,84.54,9.16132436]
[1772820396296,3.91877656,84.626,84.577,3.00098724]
[1772820397697,3.91877656,84.626,84.588,10.639]
[1772820398393,10.633,84.638,84.588,10.639]
[1772820398598,3.91877656,84.641,84.598,10.637]
[1772820398996,3.91877656,84.637,84.583,10.639]
[1772820399693,3.91877656,84.622,84.575,13.67813851]
[1772820400700,3.91877656,84.622,84.582,10.639]
[1772820401495,3.91877656,84.622,84.575,3.03813851]
[1772820403198,3.91877656,84.622,84.582,10.639]
[1772820404497,3.91877656,84.622,84.573,10.641]
[1772820404701,3.91877656,84.622,84.56,3.0487779]
[1772820406601,3.91877656,84.62,84.541,3.03640066]
[1772820406805,3.91877656,84.618,84.541,3.03640066]
[1772820407906,3.91877656,84.616,84.567,10.641]
[1772820409106,3.91877656,84.613,84.567,10.641]
[1772820409701,3.91877656,84.61,84.56,10.642]
[1772820410206,3.91877656,84.608,84.56,10.642]
[1772820410701,10.637,84.606,84.56,10.642]
[1772820410905,3.91877656,84.605,84.555,3.03640066]
[1772820411403,3.91877656,84.597,84.533,3.03829512]
[1772820411802,3.91877656,84.594,84.533,3.03829512]
[1772820412606,3.91877656,84.594,84.547,10.644]
[1772820412908,3.91877656,84.592,84.533,3.03829512]
[1772820413613,3.91877656,84.583,84.501,3.03710195]
[1772820414305,14.56077656,84.566,84.517,10.648]
[1772820415210,3.91877656,84.565,84.517,10.648]
[1772820415410,3.91877656,84.565,84.514,3.04563709]
[1772820415904,3.91877656,84.565,84.529,10.646]
[1772820416107,3.91877656,84.565,84.514,3.04563709]
[1772820416709,3.91877656,84.565,84.52,3.66154058]
[1772820417804,10.642,84.563,84.52,3.66154058]
[1772820418213,3.66919958,84.56,84.521,10.647]
[1772820418711,3.66919958,84.56,84.514,3.04563709]
[1772820418915,3.66919958,84.557,84.514,3.04563709]
[1772820419409,3.66919958,84.549,84.5,3.66154058]
[1772820420011,3.66919958,84.549,84.501,10.65]
[1772820420814,3.66919958,84.549,84.51,10.649]
[1772820422104,3.66919958,84.549,84.501,3.03004829]
[1772820422105,3.66919958,84.549,84.502,10.65]
[1772820422508,3.66919958,84.549,84.501,3.03004829]
[1772820422705,11.86374545,84.577,84.16,204.4556267]
[1772820422706,3.65686964,84.539,84.486,3.02144497]
[1772820423509,3.65686964,84.539,84.491,3.02144497]
[1772820423716,3.65686964,84.539,84.5,3.66154058]
[1772820423913,3.65686964,84.539,84.491,3.02144497]
[1772820424313,3.65686964,84.539,84.497,10.65]
[1772820425016,3.65686964,84.539,84.491,3.02144497]
[1772820425514,3.65686964,84.555,84.502,3.05535286]
[1772820425813,3.65686964,84.555,84.51,3.66154058]
[1772820426214,3.65686964,84.555,84.511,10.648]
[1772820426614,3.65686964,84.555,84.511,13.73047461]
[1772820426810,3.65686964,84.57,84.52,3.66154058]
[1772820427314,3.65686964,84.57,84.521,3.0824746]
[1772820427518,3.65686964,84.57,84.53,3.66154058]
[1772820427915,3.65686964,84.585,84.54,3.66154058]
[1772820428214,3.65686964,84.585,84.541,3.0824746]
[1772820428516,21.269,84.626,84.55,3.66154058]
[1772820428517,3.65686964,84.599,84.55,3.66154058]
[1772820429918,3.65686964,84.597,84.55,3.66154058]
[1772820430619,3.65686964,84.579,84.53,3.66154058]
[1772820431120,3.65686964,84.579,84.532,10.646]
[1772820432022,3.65686964,84.579,84.538,10.645]
[1772820432519,14.29686964,84.579,84.53,3.66154058]
[1772820433521,3.65686964,84.578,84.53,3.66154058]
[1772820433922,3.65686964,84.578,84.53,14.30754058]
[1772820434123,3.65686964,84.569,84.52,3.66154058]
[1772820434417,3.65686964,84.569,84.511,3.19734017]
[1772820434826,3.65686964,84.567,84.514,10.648]
[1772820435221,3.65686964,84.567,84.511,3.19734017]
[1772820435426,3.65686964,84.548,84.497,10.65]
[1772820436423,3.65686964,84.548,84.491,3.19793753]
[1772820436629,3.65686964,84.562,84.491,3.19793753]
[1772820437830,3.65686964,84.562,84.49,9.15322066]
[1772820437831,3.65686964,84.562,84.515,3.20922201]
[1772820438830,3.65686964,84.562,84.524,10.647]
[1772820439133,3.65686964,84.577,84.525,3.23666452]
[1772820440327,3.65686964,84.577,84.527,10.646]
[1772820441832,3.65686964,84.6,84.527,3.29231756]
[1772820442032,3.65686964,84.589,84.511,3.29231756]
[1772820442736,3.65686964,84.568,84.497,3.29448575]
[1772820443829,3.65686964,84.564,84.5,13.94448575]
[1772820444429,3.65686964,84.562,84.505,10.649]
[1772820444625,3.65686964,84.562,84.505,3.19645892]
[1772820445234,3.65686964,84.561,84.512,10.648]
[1772820445935,3.65686964,84.559,84.505,13.84545892]
[1772820446935,3.65686964,84.557,84.505,13.84545892]
[1772820447630,10.644,84.547,84.505,3.19645892]
[1772820449035,3.65686964,84.557,84.505,3.19645892]
[1772820449631,3.65686964,84.586,84.522,10.647]
[1772820450032,3.65686964,84.586,84.508,3.16909015]
[1772820450233,3.65686964,84.556,84.508,3.16909015]
[1772820450640,3.65686964,84.556,84.477,3.11768336]
[1772820450937,3.65686964,84.553,84.498,3.11768336]
[1772820452136,3.73422914,84.563,84.518,3.11722617]
[1772820452744,3.73422914,84.563,84.53,10.646]
[1772820453147,3.73422914,84.578,84.535,3.10761002]
[1772820453439,3.73422914,84.593,84.535,3.10761002]
[1772820454341,3.73422914,84.593,84.543,10.644]
[1772820455143,3.73422914,84.609,84.535,3.10761002]
[1772820455346,3.73422914,84.607,84.535,3.10761002]
[1772820456442,3.73422914,84.607,84.556,10.643]
[1772820457233,3.73422914,84.607,84.551,3.15483348]
[1772820457836,3.73422914,84.607,84.569,10.641]
[1772820458441,3.73422914,84.629,84.578,10.64]
[1772820458641,9.15322066,84.63,84.578,10.64]
[1772820458642,3.73422914,84.627,84.578,10.64]
[1772820459244,3.73422914,84.627,84.571,10.641]
[1772820460341,3.73422914,84.627,84.54,9.15322066]
[1772820460342,3.73422914,84.627,84.578,10.64]
[1772820460543,3.73422914,84.627,84.579,3.08152519]
[1772820461845,3.73422914,84.626,84.579,3.08152519]
[1772820463044,3.73422914,84.609,84.549,3.04618802]
[1772820463247,3.73422914,84.609,84.55,3.04618801]
[1772820464941,3.73422914,84.609,84.567,10.641]
[1772820465645,3.73422914,84.609,84.557,3.06606182]
[1772820466143,10.636,84.608,84.563,10.642]
[1772820466335,3.73422914,84.609,84.563,10.642]
[1772820466741,3.73422914,84.623,84.566,3.08319459]
[1772820467847,3.73422914,84.623,84.572,10.641]
[1772820468543,3.73422914,84.621,84.562,10.642]
[1772820469049,3.73422914,84.621,84.552,3.06942295]
[1772820469246,3.73422914,84.621,84.576,3.06942295]
[1772820470452,3.73422914,84.599,84.541,3.01812044]
[1772820470650,21.263,84.65,84.541,3.01812044]
[1772820470651,3.73422914,84.589,84.541,3.01812044]
[1772820471349,3.73422914,84.589,84.548,10.644]
[1772820472549,3.73422914,84.589,84.541,3.01812044]
[1772820473949,3.73422914,84.589,84.532,10.646]
[1772820474445,3.73422914,84.589,84.532,13.62976128]
[1772820474651,3.73422914,84.589,84.539,10.645]
[1772820475751,3.73422914,84.589,84.545,13.6284889]
[1772820476952,10.637,84.601,84.551,10.643]
[1772820477146,3.65417629,84.6,84.545,2.9844889]
[1772820478147,14.29017629,84.613,84.564,10.642]
[1772820478349,14.29017629,84.613,84.561,2.98508355]
[1772820478646,9.14868075,84.63,84.561,2.98508355]
[1772820478647,3.65417629,84.612,84.561,2.98508355]
[1772820478842,3.65417629,84.609,84.554,10.643]
[1772820479748,14.29117629,84.605,84.56,2.98091539]
[1772820480051,3.65417629,84.604,84.56,2.98091539]
[1772820480658,14.29117629,84.603,84.56,2.98091539]
[1772820480859,3.65417629,84.617,84.56,2.98091539]
[1772820481151,3.65417629,84.617,84.53,9.14868075]
[1772820481152,3.65417629,84.604,84.531,2.97908511]
[1772820481742,3.87893193,84.582,84.532,10.646]
[1772820482145,3.87893193,84.582,84.511,2.97528466]
[1772820482750,10.642,84.562,84.514,2.98000632]
[1772820482951,3.87893193,84.568,84.514,2.98000632]
[1772820483746,10.642,84.567,84.517,10.648]
[1772820483943,3.87893193,84.568,84.518,2.98000632]
[1772820484551,3.87893193,84.568,84.521,10.647]
[1772820484953,3.87893193,84.568,84.521,13.68260343]
[1772820485152,3.87893193,84.568,84.522,3.03560343]
[1772820486346,3.87893193,84.589,84.533,3.0348486]
[1772820487750,14.51793193,84.585,84.538,10.645]
[1772820487951,3.87893193,84.584,84.538,10.645]
[1772820489652,3.87893193,84.584,84.531,10.646]
[1772820489854,3.87893193,84.572,84.517,3.02471574]
[1772820490449,3.87893193,84.572,84.524,10.647]
[1772820490650,3.87893193,84.572,84.525,3.04434483]
[1772820491655,3.87893193,84.572,84.527,10.646]
[1772820491856,3.87893193,84.572,84.514,3.04434483]
[1772820492655,3.87893193,84.567,84.519,10.647]
[1772820492854,3.87893193,84.567,84.514,3.04434483]
[1772820492855,3.66152092,84.58,84.521,2.88987317]
[1772820493155,3.87893193,84.581,84.533,2.88987317]
[1772820493455,21.272,84.614,84.533,2.88987317]
[1772820493456,3.87893193,84.579,84.533,2.88987317]
[1772820493852,3.87893193,84.578,84.533,2.88987317]
[1772820494857,3.87893193,84.578,84.534,10.646]
[1772820497659,3.87893193,84.574,84.527,10.646]
[1772820498157,3.66152092,84.59,84.541,2.80550068]
[1772820498353,3.87893193,84.607,84.551,2.79773763]
[1772820498856,3.66152092,84.59,84.551,2.79773763]
[1772820499063,7.54045285,84.58,84.538,2.79773763]
[1772820499253,7.54045285,84.58,84.539,10.645]
[1772820499957,7.54045285,84.58,84.538,2.79773763]
[1772820500162,3.87893193,84.579,84.532,10.646]
[1772820500460,3.87893193,84.579,84.532,13.46080119]
[1772820501063,3.66152092,84.59,84.541,2.81480119]
[1772820501564,3.87893193,84.595,84.541,2.81480119]
[1772820501765,3.87893193,84.595,84.552,10.643]
[1772820502158,3.87893193,84.595,84.541,2.81480119]
[1772820502858,3.87893193,84.595,84.558,10.643]
[1772820503365,3.87893193,84.589,84.541,2.81480119]
[1772820504763,3.87893193,84.604,84.551,2.79892492]
[1772820504965,3.66152092,84.6,84.551,2.79892492]
[1772820505159,3.87893193,84.604,84.551,2.79892492]
[1772820505364,7.54045285,84.61,84.57,10.641]
[1772820505555,21.63491962,84.654,84.57,10.641]
[1772820505556,3.66152092,84.62,84.57,2.79892492]
[1772820505756,9.65505137,84.619,84.57,2.79892492]
[1772820505965,3.66152092,84.62,84.57,2.79892492]
[1772820505966,3.87893193,84.617,84.57,2.79892492]
[1772820506161,3.66152092,84.61,84.57,2.79892492]
[1772820506366,3.87893193,84.609,84.57,2.79892492]
[1772820506569,7.54045285,84.62,84.57,2.79892492]
[1772820506770,3.87893193,84.619,84.57,2.79892492]
[1772820507365,3.66152092,84.61,84.57,2.79892492]
[1772820508671,3.66152092,84.61,84.572,10.641]
[1772820509371,3.87893193,84.619,84.577,2.80718038]
[1772820510469,3.87893193,84.629,84.586,10.639]
[1772820510658,3.87893193,84.629,84.577,2.80718038]
[1772820511468,3.87893193,84.629,84.587,2.8562675]
[1772820511669,452.17453697,84.637,84.591,2.8594955]
[1772820511864,3.66079124,84.636,84.585,10.639]
[1772820512066,7.32231216,84.63,84.585,10.639]